fUST/lending_fUST_20240422
["ID","MTS","AMOUNT","RATE_DAILY","PERIOD"]
[323173535,1713771041495,-500.0,0.00021917,2]
[323173536,1713771041504,-500.0,0.00021917,2]
[323173537,1713771041514,-500.0,0.00021917,2]
[323173538,1713771041524,-521.6,0.00021917,2]
[323173539,1713771041534,-748.06,0.00021917,2]
[323173540,1713771041543,-7091.94709857,0.00022091,3]
[323173541,1713771041566,-1150.24470326,0.00022091,3]
[323173568,1713771042573,-660.25,0.00021917,2]
[323173569,1713771042582,-666.19,0.00022091,3]
[323173661,1713771043477,-35535.61819817,0.00022091,3]
[323173663,1713771043489,-169.75288837,0.0002219,2]
[323173665,1713771043499,-909.83,0.00022191,2]
[323173667,1713771043508,-500.0,0.00022191,2]
[323173669,1713771043517,-649.35,0.00022191,2]
[323173671,1713771043528,-781.95,0.00022191,2]
[323173673,1713771043539,-500.0,0.00022191,2]
[323173674,1713771043548,-618.79,0.00022191,2]
[323173676,1713771043558,-500.0,0.00022191,2]
[323173678,1713771043567,-500.0,0.00022191,2]
[323173680,1713771043576,-1676.89,0.00022191,2]
[323173682,1713771043586,-500.0,0.00022191,2]
[323173683,1713771043595,-500.0,0.00022191,2]
[323173687,1713771043605,-1796.53,0.00022191,2]
[323173690,1713771043614,-500.0,0.00022191,2]
[323173692,1713771043623,-500.0,0.00022191,2]
[323173693,1713771043632,-500.0,0.00022191,2]
[323173695,1713771043642,-500.0,0.00022191,2]
[323173696,1713771043651,-500.0,0.00022191,2]
[323173697,1713771043660,-500.0,0.00022191,2]
[323173698,1713771043670,-532.06,0.00022191,2]
[323173699,1713771043679,-500.0,0.00022191,2]
[323173701,1713771043689,-528.59,0.00022191,2]
[323173702,1713771043698,-510.11,0.00022191,2]
[323173703,1713771043706,-563.65,0.00022191,2]
[323173704,1713771043716,-500.0,0.00022191,2]
[323173705,1713771043725,-500.0,0.00022191,2]
[323173706,1713771043734,-1715.53,0.00022191,2]
[323173707,1713771043743,-500.0,0.00022191,2]
[323173708,1713771043752,-500.0,0.00022191,2]
[323173709,1713771043762,-838.09,0.00022191,2]
[323173710,1713771043771,-500.0,0.00022191,2]
[323173711,1713771043781,-500.0,0.00022191,2]
[323173712,1713771043789,-500.0,0.00022191,2]
[323173713,1713771043800,-1211.3,0.00022191,2]
[323173714,1713771043810,-539.18,0.00022191,2]
[323173715,1713771043819,-500.0,0.00022191,2]
[323173716,1713771043829,-500.0,0.00022191,2]
[323173717,1713771043838,-500.0,0.00022191,2]
[323173718,1713771043847,-500.0,0.00022191,2]
[323173719,1713771043857,-1791.31,0.00022191,2]
[323173720,1713771043867,-765.95,0.00022191,2]
[323173721,1713771043875,-618.49311596,0.00022191,2]
[323173722,1713771043884,-672.43,0.00022191,2]
[323173723,1713771043894,-500.0,0.00022191,2]
[323173724,1713771043903,-500.0,0.00022191,2]
[323173725,1713771043912,-703.56,0.00022191,2]
[323173726,1713771043922,-810.54,0.00022191,2]
[323173727,1713771043931,-500.0,0.00022191,2]
[323173728,1713771043940,-500.0,0.00022191,2]
[323173729,1713771043949,-500.0,0.00022191,2]
[323173730,1713771043958,-1339.24,0.00022191,2]
[323173731,1713771043967,-3162.37,0.00022191,2]
[323173732,1713771043975,-500.0,0.00022191,2]
[323173733,1713771043984,-1126.55,0.00022191,2]
[323173734,1713771043993,-940.4,0.00022191,2]
[323173735,1713771044002,-584.61,0.00022191,2]
[323173736,1713771044011,-500.0,0.00022191,2]
[323173737,1713771044019,-500.0,0.00022191,2]
[323173738,1713771044028,-500.0,0.00022191,2]
[323173739,1713771044037,-500.0,0.00022191,2]
[323173740,1713771044046,-500.0,0.00022191,2]
[323173741,1713771044054,-2107.45,0.00022191,2]
[323173742,1713771044063,-1238.19,0.00022191,2]
[323173743,1713771044072,-500.0,0.00022191,2]
[323173744,1713771044081,-631.52,0.00022191,2]
[323173745,1713771044090,-500.0,0.00022191,2]
[323173746,1713771044099,-500.0,0.00022191,2]
[323173747,1713771044108,-500.0,0.00022191,2]
[323173748,1713771044116,-295.48177546,0.00022191,2]
[323173749,1713771044125,-694.59,0.00022191,2]
[323173750,1713771044134,-500.0,0.00022191,2]
[323173751,1713771044143,-163.50064226,0.00022191,2]
[323173752,1713771044152,-500.0,0.00022191,2]
[323173753,1713771044160,-500.0,0.00022191,2]
[323173754,1713771044169,-1436.04,0.00022191,2]
[323173755,1713771044177,-532.95,0.00022191,2]
[323173756,1713771044187,-500.0,0.00022191,2]
[323173757,1713771044195,-500.0,0.00022191,2]
[323173758,1713771044204,-500.0,0.00022191,2]
[323173759,1713771044213,-651.21,0.00022191,2]
[323173760,1713771044221,-500.0,0.00022191,2]
[323173761,1713771044229,-500.0,0.00022191,2]
[323173762,1713771044237,-500.0,0.00022191,2]
[323173763,1713771044246,-500.0,0.00022191,2]
[323173764,1713771044255,-983.71,0.00022191,2]
[323173765,1713771044263,-500.0,0.00022191,2]
[323173766,1713771044272,-748.79,0.00022191,2]
[323173767,1713771044282,-500.0,0.00022191,2]
[323173768,1713771044291,-773.15,0.00022191,2]
[323173769,1713771044299,-1482.76,0.00022191,2]
[323173770,1713771044308,-500.0,0.00022191,2]
[323173771,1713771044317,-713.22,0.00022191,2]
[323173772,1713771044326,-384.35346897,0.00022191,2]
[323173773,1713771044335,-500.0,0.00022191,2]
[323173774,1713771044344,-500.0,0.00022191,2]
[323173775,1713771044353,-500.0,0.00022191,2]
[323173776,1713771044362,-520.76,0.00022191,2]
[323173777,1713771044370,-500.0,0.00022191,2]
[323173778,1713771044380,-500.0,0.00022191,2]
[323173779,1713771044388,-500.0,0.00022191,2]
[323173780,1713771044397,-500.0,0.00022191,2]
[323173781,1713771044406,-845.63,0.00022191,2]
[323173782,1713771044415,-500.0,0.00022191,2]
[323173783,1713771044424,-500.0,0.00022191,2]
[323173784,1713771044433,-500.0,0.00022191,2]
[323173785,1713771044443,-500.0,0.00022191,2]
[323173786,1713771044453,-546.12,0.00022191,2]
[323173787,1713771044463,-500.0,0.00022191,2]
[323173788,1713771044471,-657.75,0.00022191,2]
[323173789,1713771044480,-1593.07,0.00022191,2]
[323173790,1713771044489,-540.67,0.00022191,2]
[323173791,1713771044499,-788.31,0.00022191,2]
[323173792,1713771044509,-1886.84,0.00022191,2]
[323173793,1713771044518,-500.0,0.00022191,2]
[323173794,1713771044528,-500.0,0.00022191,2]
[323173795,1713771044538,-1320.93,0.00022191,2]
[323173796,1713771044547,-500.0,0.00022191,2]
[323173798,1713771044556,-1499.42,0.00022191,2]
[323173799,1713771044566,-551.6,0.00022191,2]
[323173800,1713771044575,-500.0,0.00022191,2]
[323173801,1713771044584,-512.96,0.00022191,2]
[323173802,1713771044593,-500.0,0.00022191,2]
[323173803,1713771044603,-2279.58,0.00022191,2]
[323173804,1713771044612,-500.0,0.00022191,2]
[323173805,1713771044621,-2400.32,0.00022191,2]
[323173806,1713771044630,-500.0,0.00022191,2]
[323173807,1713771044640,-1042.84,0.00022191,2]
[323173808,1713771044649,-987.76,0.00022191,2]
[323173809,1713771044658,-500.0,0.00022191,2]
[323173810,1713771044667,-500.0,0.00022191,2]
[323173812,1713771044676,-891.53,0.00022191,2]
[323173813,1713771044685,-500.0,0.00022191,2]
[323173814,1713771044694,-662.27,0.00022191,2]
[323173815,1713771044703,-500.0,0.00022191,2]
[323173816,1713771044712,-544.28,0.00022191,2]
[323173817,1713771044722,-500.0,0.00022191,2]
[323173818,1713771044732,-500.0,0.00022191,2]
[323173819,1713771044741,-1893.47,0.00022191,2]
[323173820,1713771044751,-500.0,0.00022191,2]
[323173821,1713771044760,-1209.09,0.00022191,2]
[323173823,1713771044768,-1729.68,0.00022191,2]
[323173824,1713771044777,-520.04,0.00022191,2]
[323173825,1713771044786,-530.72,0.00022191,2]
[323173826,1713771044795,-5968.09,0.00022191,2]
[323173827,1713771044805,-500.0,0.00022191,2]
[323173828,1713771044814,-814.84,0.00022191,2]
[323173829,1713771044823,-4318.26,0.00022191,2]
[323173830,1713771044832,-855.27,0.00022191,2]
[323173831,1713771044841,-500.0,0.00022191,2]
[323173832,1713771044851,-8414.55,0.00022191,2]
[323173833,1713771044860,-1637.34,0.00022191,2]
[323173834,1713771044869,-500.0,0.00022191,2]
[323173835,1713771044878,-500.0,0.00022191,2]
[323173836,1713771044886,-511.45,0.00022191,2]
[323173837,1713771044897,-500.0,0.00022191,2]
[323173838,1713771044911,-5942.22,0.00022191,2]
[323173839,1713771044922,-500.0,0.00022191,2]
[323173840,1713771044931,-500.0,0.00022191,2]
[323173841,1713771044941,-864.39,0.00022191,2]
[323173842,1713771044951,-1481.71,0.00022191,2]
[323173843,1713771044960,-206.22908523,0.00022191,2]
[323173844,1713771044970,-500.0,0.00022191,2]
[323173845,1713771044979,-599.44,0.00022191,2]
[323173846,1713771044989,-929.38,0.00022191,2]
[323173847,1713771044999,-500.0,0.00022191,2]
[323173848,1713771045009,-824.57,0.00022191,2]
[323173849,1713771045019,-500.0,0.00022191,2]
[323173850,1713771045029,-683.82,0.00022191,2]
[323173851,1713771045040,-6331.87,0.00022191,2]
[323173852,1713771045049,-740.12,0.00022191,2]
[323173853,1713771045059,-1229.03,0.00022191,2]
[323173854,1713771045070,-500.0,0.00022191,2]
[323173855,1713771045080,-500.0,0.00022191,2]
[323173856,1713771045090,-1773.05,0.00022191,2]
[323173857,1713771045100,-500.0,0.00022191,2]
[323173858,1713771045111,-500.0,0.00022191,2]
[323173859,1713771045121,-500.0,0.00022191,2]
[323173860,1713771045131,-9168.41,0.00022191,2]
[323173861,1713771045142,-500.0,0.00022191,2]
[323173862,1713771045153,-500.0,0.00022191,2]
[323173863,1713771045163,-500.0,0.00022191,2]
[323173864,1713771045173,-603.54,0.00022191,2]
[323173865,1713771045182,-545.2,0.00022191,2]
[323173866,1713771045191,-637.24,0.00022191,2]
[323173867,1713771045200,-500.0,0.00022191,2]
[323173868,1713771045209,-454.41937308,0.00022191,2]
[323173869,1713771045218,-910.54,0.00022191,2]
[323173870,1713771045227,-671.87,0.00022191,2]
[323173871,1713771045236,-1223.34,0.00022191,2]
[323173872,1713771045245,-5648.11,0.00022191,2]
[323173873,1713771045255,-816.69,0.00022191,2]
[323173874,1713771045265,-500.0,0.00022191,2]
[323173875,1713771045275,-1094.87,0.00022191,2]
[323173876,1713771045285,-500.0,0.00022191,2]
[323173877,1713771045295,-500.0,0.00022191,2]
[323173878,1713771045305,-500.0,0.00022191,2]
[323173879,1713771045315,-4561.56,0.00022191,2]
[323173880,1713771045325,-500.0,0.00022191,2]
[323173881,1713771045335,-500.0,0.00022191,2]
[323173882,1713771045345,-500.0,0.00022191,2]
[323173883,1713771045354,-500.0,0.00022191,2]
[323173884,1713771045363,-500.0,0.00022191,2]
[323173885,1713771045372,-521.6,0.00022191,2]
[323173886,1713771045382,-748.06,0.00022191,2]
[323173887,1713771045391,-660.25,0.00022191,2]
[323173888,1713771045401,-417.0,0.00022238,2]
[323173889,1713771045410,-420.0,0.00022333,2]
[323173890,1713771045419,-909.83,0.00022465,2]
[323173891,1713771045428,-500.0,0.00022465,2]
[323173892,1713771045438,-649.35,0.00022465,2]
[323173893,1713771045449,-781.95,0.00022465,2]
[323173894,1713771045461,-500.0,0.00022465,2]
[323173895,1713771045471,-618.79,0.00022465,2]
[323173896,1713771045480,-500.0,0.00022465,2]
[323173897,1713771045490,-500.0,0.00022465,2]
[323173898,1713771045499,-1676.89,0.00022465,2]
[323173899,1713771045508,-500.0,0.00022465,2]
[323173900,1713771045517,-500.0,0.00022465,2]
[323173901,1713771045527,-1796.53,0.00022465,2]
[323173902,1713771045536,-500.0,0.00022465,2]
[323173903,1713771045545,-500.0,0.00022465,2]
[323173904,1713771045555,-500.0,0.00022465,2]
[323173905,1713771045564,-500.0,0.00022465,2]
[323173906,1713771045573,-500.0,0.00022465,2]
[323173907,1713771045582,-500.0,0.00022465,2]
[323173908,1713771045591,-532.06,0.00022465,2]
[323173909,1713771045600,-500.0,0.00022465,2]
[323173910,1713771045610,-528.59,0.00022465,2]
[323173911,1713771045619,-510.11,0.00022465,2]
[323173912,1713771045628,-563.65,0.00022465,2]
[323173913,1713771045637,-500.0,0.00022465,2]
[323173915,1713771045646,-500.0,0.00022465,2]
[323173916,1713771045655,-1715.53,0.00022465,2]
[323173917,1713771045664,-500.0,0.00022465,2]
[323173918,1713771045673,-500.0,0.00022465,2]
[323173919,1713771045682,-838.09,0.00022465,2]
[323173920,1713771045691,-500.0,0.00022465,2]
[323173922,1713771045700,-500.0,0.00022465,2]
[323173923,1713771045709,-500.0,0.00022465,2]
[323173925,1713771045718,-1211.3,0.00022465,2]
[323173927,1713771045727,-500.0,0.00022465,2]
[323173929,1713771045735,-500.0,0.00022465,2]
[323173931,1713771045862,-500.0,0.00022465,2]
[323173932,1713771045871,-500.0,0.00022465,2]
[323173933,1713771045880,-1791.31,0.00022465,2]
[323173934,1713771045889,-765.95,0.00022465,2]
[323173935,1713771045898,-672.43,0.00022465,2]
[323173936,1713771045907,-500.0,0.00022465,2]
[323173937,1713771045917,-500.0,0.00022465,2]
[323173938,1713771045926,-703.56,0.00022465,2]
[323173939,1713771045934,-810.54,0.00022465,2]
[323173940,1713771045943,-500.0,0.00022465,2]
[323173941,1713771045952,-500.0,0.00022465,2]
[323173942,1713771045961,-500.0,0.00022465,2]
[323173943,1713771045970,-1339.24,0.00022465,2]
[323173944,1713771045979,-3162.37,0.00022465,2]
[323173945,1713771045988,-500.0,0.00022465,2]
[323173946,1713771045997,-1126.55,0.00022465,2]
[323173947,1713771046007,-940.4,0.00022465,2]
[323173948,1713771046016,-584.61,0.00022465,2]
[323173949,1713771046025,-500.0,0.00022465,2]
[323173950,1713771046034,-568.05442208,0.00022465,2]
[323173951,1713771046044,-500.0,0.00022465,2]
[323173952,1713771046053,-500.0,0.00022465,2]
[323173953,1713771046062,-504.54120045,0.00022465,2]
[323173954,1713771046071,-2107.45,0.00022465,2]
[323173955,1713771046080,-1238.19,0.00022465,2]
[323173956,1713771046089,-500.0,0.00022465,2]
[323173958,1713771046098,-631.52,0.00022465,2]
[323173960,1713771046107,-500.0,0.00022465,2]
[323173962,1713771046116,-500.0,0.00022465,2]
[323173964,1713771046125,-500.0,0.00022465,2]
[323173966,1713771046134,-694.59,0.00022465,2]
[323173968,1713771046143,-500.0,0.00022465,2]
[323173970,1713771046152,-500.0,0.00022465,2]
[323173972,1713771046161,-500.0,0.00022465,2]
[323173974,1713771046171,-1436.04,0.00022465,2]
[323173976,1713771046180,-532.95,0.00022465,2]
[323173978,1713771046188,-500.0,0.00022465,2]
[323173980,1713771046198,-500.0,0.00022465,2]
[323173982,1713771046206,-500.0,0.00022465,2]
[323173983,1713771046215,-651.21,0.00022465,2]
[323173984,1713771046225,-500.0,0.00022465,2]
[323173985,1713771046234,-500.0,0.00022465,2]
[323173986,1713771046242,-499.9984897,0.00022465,2]
[323173987,1713771046251,-500.0,0.00022465,2]
[323173988,1713771046261,-983.71,0.00022465,2]
[323173989,1713771046270,-500.0,0.00022465,2]
[323173990,1713771046279,-748.79,0.00022465,2]
[323173991,1713771046289,-500.0,0.00022465,2]
[323173992,1713771046298,-773.15,0.00022465,2]
[323173993,1713771046307,-1482.76,0.00022465,2]
[323173994,1713771046316,-500.0,0.00022465,2]
[323173995,1713771046326,-713.22,0.00022465,2]
[323173996,1713771046335,-500.0,0.00022465,2]
[323173997,1713771046344,-500.0,0.00022465,2]
[323173998,1713771046354,-452.62828504,0.00022465,2]
[323173999,1713771046363,-520.76,0.00022465,2]
[323174000,1713771046372,-500.0,0.00022465,2]
[323174001,1713771046381,-500.0,0.00022465,2]
[323174002,1713771046390,-500.0,0.00022465,2]
[323174003,1713771046399,-500.0,0.00022465,2]
[323174004,1713771046408,-845.63,0.00022465,2]
[323174006,1713771046417,-500.0,0.00022465,2]
[323174007,1713771046426,-500.0,0.00022465,2]
[323174008,1713771046435,-500.0,0.00022465,2]
[323174009,1713771046446,-500.0,0.00022465,2]
[323174010,1713771046459,-546.12,0.00022465,2]
[323174011,1713771046468,-500.0,0.00022465,2]
[323174013,1713771046477,-657.75,0.00022465,2]
[323174014,1713771046486,-1593.07,0.00022465,2]
[323174015,1713771046497,-540.67,0.00022465,2]
[323174016,1713771046506,-788.31,0.00022465,2]
[323174017,1713771046516,-1886.84,0.00022465,2]
[323174018,1713771046526,-500.0,0.00022465,2]
[323174019,1713771046536,-500.0,0.00022465,2]
[323174020,1713771046545,-1320.93,0.00022465,2]
[323174021,1713771046555,-500.0,0.00022465,2]
[323174022,1713771046564,-1499.42,0.00022465,2]
[323174023,1713771046573,-551.6,0.00022465,2]
[323174024,1713771046582,-500.0,0.00022465,2]
[323174025,1713771046592,-512.96,0.00022465,2]
[323174026,1713771046601,-500.0,0.00022465,2]
[323174027,1713771046611,-2279.58,0.00022465,2]
[323174028,1713771046620,-500.0,0.00022465,2]
[323174029,1713771046629,-2400.32,0.00022465,2]
[323174030,1713771046638,-500.0,0.00022465,2]
[323174031,1713771046648,-1042.84,0.00022465,2]
[323174032,1713771046658,-987.76,0.00022465,2]
[323174033,1713771046668,-500.0,0.00022465,2]
[323174034,1713771046678,-500.0,0.00022465,2]
[323174035,1713771046687,-891.53,0.00022465,2]
[323174036,1713771046699,-500.0,0.00022465,2]
[323174037,1713771046710,-662.27,0.00022465,2]
[323174038,1713771046720,-500.0,0.00022465,2]
[323174039,1713771046729,-544.28,0.00022465,2]
[323174040,1713771046738,-500.0,0.00022465,2]
[323174041,1713771046747,-500.0,0.00022465,2]
[323174042,1713771046757,-1893.47,0.00022465,2]
[323174043,1713771046767,-504.65527137,0.00022465,2]
[323174044,1713771046776,-1209.09,0.00022465,2]
[323174045,1713771046786,-1729.68,0.00022465,2]
[323174046,1713771046794,-520.04,0.00022465,2]
[323174047,1713771046803,-530.72,0.00022465,2]
[323174048,1713771046812,-5968.09,0.00022465,2]
[323174049,1713771046821,-500.0,0.00022465,2]
[323174050,1713771046830,-814.84,0.00022465,2]
[323174051,1713771046839,-4318.26,0.00022465,2]
[323174052,1713771046848,-855.27,0.00022465,2]
[323174053,1713771046857,-500.0,0.00022465,2]
[323174054,1713771046866,-8414.55,0.00022465,2]
[323174055,1713771046875,-1637.34,0.00022465,2]
[323174056,1713771046884,-500.0,0.00022465,2]
[323174057,1713771046894,-500.0,0.00022465,2]
[323174058,1713771046902,-511.45,0.00022465,2]
[323174059,1713771046912,-500.0,0.00022465,2]
[323174060,1713771046920,-5942.22,0.00022465,2]
[323174061,1713771046929,-500.0,0.00022465,2]
[323174062,1713771046938,-500.0,0.00022465,2]
[323174063,1713771046948,-864.39,0.00022465,2]
[323174064,1713771046957,-1481.71,0.00022465,2]
[323174065,1713771046967,-500.0,0.00022465,2]
[323174066,1713771046976,-599.44,0.00022465,2]
[323174067,1713771046985,-929.38,0.00022465,2]
[323174068,1713771046994,-500.0,0.00022465,2]
[323174069,1713771047004,-824.57,0.00022465,2]
[323174070,1713771047013,-500.0,0.00022465,2]
[323174071,1713771047022,-683.82,0.00022465,2]
[323174072,1713771047031,-6331.87,0.00022465,2]
[323174073,1713771047040,-740.12,0.00022465,2]
[323174074,1713771047050,-500.0,0.00022465,2]
[323174075,1713771047059,-1229.03,0.00022465,2]
[323174076,1713771047067,-500.0,0.00022465,2]
[323174077,1713771047077,-1773.05,0.00022465,2]
[323174078,1713771047086,-500.0,0.00022465,2]
[323174079,1713771047095,-287.98270731,0.00022465,2]
[323174080,1713771047104,-500.0,0.00022465,2]
[323174081,1713771047113,-9168.41,0.00022465,2]
[323174082,1713771047122,-500.0,0.00022465,2]
[323174083,1713771047132,-500.0,0.00022465,2]
[323174084,1713771047141,-500.0,0.00022465,2]
[323174085,1713771047150,-603.54,0.00022465,2]
[323174086,1713771047159,-545.2,0.00022465,2]
[323174087,1713771047168,-637.24,0.00022465,2]
[323174088,1713771047178,-500.0,0.00022465,2]
[323174089,1713771047187,-910.54,0.00022465,2]
[323174090,1713771047196,-671.87,0.00022465,2]
[323174091,1713771047205,-1223.34,0.00022465,2]
[323174092,1713771047214,-5648.11,0.00022465,2]
[323174093,1713771047224,-816.69,0.00022465,2]
[323174094,1713771047233,-500.0,0.00022465,2]
[323174095,1713771047242,-1094.87,0.00022465,2]
[323174096,1713771047251,-500.0,0.00022465,2]
[323174097,1713771047260,-500.0,0.00022465,2]
[323174098,1713771047269,-500.0,0.00022465,2]
[323174099,1713771047279,-4561.56,0.00022465,2]
[323174100,1713771047287,-500.0,0.00022465,2]
[323174101,1713771047296,-500.0,0.00022465,2]
[323174102,1713771047306,-500.0,0.00022465,2]
[323174103,1713771047315,-500.0,0.00022465,2]
[323174104,1713771047324,-500.0,0.00022465,2]
[323174105,1713771047334,-521.6,0.00022465,2]
[323174106,1713771047343,-748.06,0.00022465,2]
[323174107,1713771047352,-660.25,0.00022465,2]
[323174108,1713771047362,-153.0,0.00022552,2]
[323174109,1713771047371,-909.83,0.00022739,2]
[323174110,1713771047380,-500.0,0.00022739,2]
[323174111,1713771047389,-649.35,0.00022739,2]
[323174112,1713771047399,-781.95,0.00022739,2]
[323174113,1713771047409,-500.0,0.00022739,2]
[323174114,1713771047419,-618.79,0.00022739,2]
[323174115,1713771047428,-500.0,0.00022739,2]
[323174116,1713771047438,-500.0,0.00022739,2]
[323174117,1713771047448,-1676.89,0.00022739,2]
[323174118,1713771047460,-500.0,0.00022739,2]
[323174119,1713771047469,-500.0,0.00022739,2]
[323174120,1713771047479,-1796.53,0.00022739,2]
[323174121,1713771047488,-500.0,0.00022739,2]
[323174122,1713771047498,-500.0,0.00022739,2]
[323174123,1713771047508,-500.0,0.00022739,2]
[323174124,1713771047518,-500.0,0.00022739,2]
[323174125,1713771047528,-500.0,0.00022739,2]
[323174126,1713771047539,-500.0,0.00022739,2]
[323174127,1713771047550,-532.06,0.00022739,2]
[323174128,1713771047559,-500.0,0.00022739,2]
[323174129,1713771047568,-528.59,0.00022739,2]
[323174130,1713771047578,-510.11,0.00022739,2]
[323174131,1713771047588,-563.65,0.00022739,2]
[323174132,1713771047597,-500.0,0.00022739,2]
[323174133,1713771047607,-500.0,0.00022739,2]
[323174134,1713771047616,-1715.53,0.00022739,2]
[323174135,1713771047626,-500.0,0.00022739,2]
[323174136,1713771047635,-500.0,0.00022739,2]
[323174137,1713771047644,-838.09,0.00022739,2]
[323174138,1713771047653,-500.0,0.00022739,2]
[323174139,1713771047663,-500.0,0.00022739,2]
[323174140,1713771047672,-500.0,0.00022739,2]
[323174141,1713771047681,-1211.3,0.00022739,2]
[323174142,1713771047690,-500.0,0.00022739,2]
[323174143,1713771047700,-500.0,0.00022739,2]
[323174144,1713771047710,-500.0,0.00022739,2]
[323174145,1713771047719,-500.0,0.00022739,2]
[323174146,1713771047728,-1791.31,0.00022739,2]
[323174147,1713771047738,-765.95,0.00022739,2]
[323174148,1713771047747,-672.43,0.00022739,2]
[323174149,1713771047756,-500.0,0.00022739,2]
[323174150,1713771047766,-500.0,0.00022739,2]
[323174151,1713771047776,-703.56,0.00022739,2]
[323174152,1713771047785,-810.54,0.00022739,2]
[323174153,1713771047795,-500.0,0.00022739,2]
[323174154,1713771047804,-500.0,0.00022739,2]
[323174155,1713771047813,-500.0,0.00022739,2]
[323174156,1713771047823,-1339.24,0.00022739,2]
[323174157,1713771047832,-3162.37,0.00022739,2]
[323174158,1713771047841,-500.0,0.00022739,2]
[323174159,1713771047850,-1126.55,0.00022739,2]
[323174160,1713771047859,-940.4,0.00022739,2]
[323174161,1713771047869,-584.61,0.00022739,2]
[323174162,1713771047879,-500.0,0.00022739,2]
[323174163,1713771047888,-500.0,0.00022739,2]
[323174164,1713771047897,-500.0,0.00022739,2]
[323174165,1713771047907,-2107.45,0.00022739,2]
[323174166,1713771047916,-1238.19,0.00022739,2]
[323174167,1713771047925,-644.94823493,0.00022739,2]
[323174168,1713771047934,-631.52,0.00022739,2]
[323174169,1713771047943,-500.0,0.00022739,2]
[323174170,1713771047952,-500.0,0.00022739,2]
[323174171,1713771047962,-500.0,0.00022739,2]
[323174172,1713771047971,-694.59,0.00022739,2]
[323174173,1713771047980,-500.0,0.00022739,2]
[323174174,1713771047989,-500.0,0.00022739,2]
[323174175,1713771047999,-500.0,0.00022739,2]
[323174176,1713771048008,-1436.04,0.00022739,2]
[323174177,1713771048017,-532.95,0.00022739,2]
[323174178,1713771048028,-500.0,0.00022739,2]
[323174179,1713771048037,-500.0,0.00022739,2]
[323174180,1713771048046,-500.0,0.00022739,2]
[323174181,1713771048055,-651.21,0.00022739,2]
[323174182,1713771048065,-500.0,0.00022739,2]
[323174183,1713771048073,-500.0,0.00022739,2]
[323174184,1713771048082,-500.0,0.00022739,2]
[323174185,1713771048091,-983.71,0.00022739,2]
[323174186,1713771048100,-500.0,0.00022739,2]
[323174187,1713771048109,-748.79,0.00022739,2]
[323174188,1713771048118,-500.0,0.00022739,2]
[323174189,1713771048127,-773.15,0.00022739,2]
[323174190,1713771048136,-1482.76,0.00022739,2]
[323174191,1713771048145,-500.0,0.00022739,2]
[323174192,1713771048154,-713.22,0.00022739,2]
[323174193,1713771048163,-500.0,0.00022739,2]